bitfinex/quotes_ETHUSD_20220215
["timestamp","ask_amount","ask_price","bid_price","bid_amount"]
[1644884727523,1.39822676,2932.5,2932.2,0.07234573]
[1644884727725,0.80420319,2932.8,2932.3,0.07234573]
[1644884727922,0.00891987,2932.6,2932.4,0.07234573]
[1644884728122,1.38928055,2932.5,2932.2,0.85259]
[1644884728323,1.68928055,2932.5,2932.3,0.07233741]
[1644884728526,1.38928055,2932.4,2932.3,0.07233741]
[1644884728774,1.38928055,2932.4,2932.2,0.07233741]
[1644884728974,1.38928055,2932.4,2932.3,0.07233741]
[1644884729175,0.3089199,2932.5,2932.3,0.07233741]
[1644884729574,1.38966759,2932.4,2932.3,0.07233741]
[1644884729775,1.68966759,2932.4,2932.3,0.07233741]
[1644884729975,1.68966759,2932.4,2932.2,0.92491741]
[1644884730176,0.3,2932.4,2932.3,0.92489741]
[1644884730577,0.00892905,2932.5,2932.3,0.92489741]
[1644884730779,0.00892905,2932.5,2932.4,0.07233741]
[1644884731384,1.39004179,2932.5,2932.4,0.07233741]
[1644884731576,1.39004179,2932.7,2932.2,0.07233741]
[1644884731777,0.5,2932.8,2932.1,0.13888075]
[1644884731778,0.3,2932.5,2932.3,0.07233741]
[1644884731976,1.39004179,2932.4,2932.1,0.13888075]
[1644884732177,1.39004179,2932.4,2932.2,0.07233728]
[1644884734824,2.24272879,2932.4,2932.2,0.07233728]
[1644884735024,1.39004179,2932.3,2932.2,0.07233728]
[1644884735222,1.69004179,2932.3,2932.2,0.07233728]
[1644884735626,1.69004179,2932.3,2932.1,0.13888075]
[1644884735825,6.27411887,2932.2,2932.1,0.13888075]
[1644884736025,6.77411887,2932.2,2932.1,0.13888075]
[1644884736293,7.62702887,2932.2,2932.1,0.13888075]
[1644884737693,4.72702887,2932.2,2932.1,0.13888075]
[1644884738695,3.87411887,2932.2,2932.1,0.13888075]
[1644884741521,3.37411887,2932.2,2932.1,0.13888075]
[1644884742824,3.87411887,2932.2,2932.1,0.13888075]
[1644884744972,2.35288,2932.2,2932.1,0.13888075]
[1644884745372,7.35288,2932.2,2932.1,0.13888075]
[1644884746075,2.35288,2932.2,2932.1,0.13888075]
[1644884749226,2.8691777,2932.3,2932.1,0.13888075]
[1644884749428,2.0163277,2932.3,2932.1,0.13888075]
[1644884749628,1.1634,2932.3,2932.1,0.13888075]
[1644884749830,0.00955591,2932.5,2932.1,0.13888075]
[1644884750226,0.00955591,2932.5,2932.4,0.85255]
[1644884750428,0.00955591,2932.5,2932.3,1.09489968]
[1644884750629,0.6494931,2933.0,2932.3,1.09489968]
[1644884750828,0.0095561,2932.6,2932.3,1.09489968]
[1644884751281,0.0095561,2932.6,2932.5,1.7052519]
[1644884751675,1.70528,2932.9,2932.5,1.7052519]
[1644884751883,0.00420319,2933.0,2932.5,1.7052519]
[1644884752077,0.00955589,2932.7,2932.5,1.7052519]
[1644884752278,0.00955589,2932.7,2932.6,0.8525663]
[1644884752887,0.6494931,2933.2,2932.6,0.8525663]
[1644884752888,0.00420319,2933.2,2932.6,0.8525663]
[1644884753078,0.6494931,2933.3,2933.1,1.10926801]
[1644884753281,0.04241964,2933.3,2933.1,1.96158321]
[1644884754081,0.00420319,2933.3,2933.1,1.96158321]
[1644884754480,0.01375773,2933.3,2933.1,1.96158321]
[1644884754879,0.01375773,2933.3,2933.1,0.8523152]
[1644884755124,0.01375773,2933.3,2931.9,0.57581711]
[1644884755125,0.64528991,2933.2,2932.8,0.8525528]
[1644884755325,0.00420319,2933.1,2932.1,3.34618075]
[1644884755825,1.39294063,2933.0,2932.5,0.94140863]
[1644884756025,0.00420319,2932.9,2932.6,0.07233302]
[1644884756226,1.39294063,2932.8,2932.6,0.92494262]
[1644884756429,1.39294063,2932.8,2932.7,0.07233302]
[1644884756826,1.40249621,2932.8,2932.7,0.07233302]
[1644884757026,1.40249621,2932.8,2932.6,0.07233302]
[1644884757230,1.40249621,2932.8,2932.7,0.92493112]
[1644884757231,0.00955558,2932.8,2932.7,0.92493112]
[1644884757627,1.40249665,2932.8,2932.7,0.92493112]
[1644884757826,1.39294107,2932.8,2932.7,0.92493112]
[1644884758429,1.39294107,2932.8,2932.7,0.8525981]
[1644884758870,1.39294107,2932.8,2932.7,0.92493181]
[1644884759270,0.00955548,2932.9,2932.7,0.92493181]
[1644884759468,1.39294107,2932.8,2932.7,0.8525981]
[1644884760070,1.39294107,2932.8,2932.7,0.92406721]
[1644884760470,0.00955548,2932.9,2932.7,1.77650721]
[1644884760669,1.39294107,2932.8,2932.7,1.70417296]
[1644884760874,1.39294107,2932.8,2932.7,1.77650297]
[1644884761676,0.00955548,2932.9,2932.8,0.85234]
[1644884761871,0.00955548,2932.9,2932.8,0.92467001]
[1644884762171,1.40241114,2932.9,2932.8,0.92467001]
[1644884762626,1.39285566,2932.9,2932.8,0.07233001]
[1644884763027,0.00346997,2933.0,2932.8,0.07233001]
[1644884763229,0.00346997,2933.0,2932.4,1.16836661]
[1644884763426,0.00346997,2933.0,2932.5,0.07233281]
[1644884763627,2.25313882,2933.0,2932.5,3.57233281]
[1644884763827,1.39285566,2932.9,2932.6,0.07233281]
[1644884764027,1.40241857,2932.9,2932.6,0.07233281]
[1644884764235,1.39285566,2932.8,2932.6,0.07233281]
[1644884764828,1.39285566,2932.8,2932.6,0.92493971]
[1644884765028,1.39285566,2932.8,2932.7,0.07233281]
[1644884765228,1.40241868,2932.8,2932.7,0.07233281]
[1644884766268,1.39285566,2932.8,2932.7,0.07233281]
[1644884768871,0.00956291,2932.9,2932.7,0.07233281]
[1644884769170,1.39285566,2932.8,2932.7,0.07233281]
[1644884769571,1.39285566,2932.8,2932.7,3.57233281]
[1644884770021,0.00956291,2932.9,2932.7,3.57233281]
[1644884770222,0.00956291,2932.9,2932.8,0.92484331]
[1644884770424,1.4021643,2932.9,2932.8,0.92484331]
[1644884771024,1.39260139,2932.9,2932.8,0.92484331]
[1644884771228,1.39260139,2932.9,2932.8,1.77733631]
[1644884771426,1.39260139,2932.9,2932.8,0.92484331]
[1644884772329,0.69061015,2932.6,2932.5,0.85252]
[1644884772528,2.08321154,2932.6,2932.5,3.57233365]
[1644884774478,2.08321154,2932.6,2932.5,0.07233365]
[1644884774870,2.08321154,2932.6,2932.5,1.14644544]
[1644884775972,2.08321154,2932.6,2932.5,2.85131544]
[1644884776773,2.08321154,2932.6,2932.5,6.35131544]
[1644884780121,2.08321154,2932.6,2932.5,4.64644544]
[1644884781376,2.08321154,2932.6,2932.5,5.49895544]
[1644884781579,0.69061015,2932.6,2932.5,8.69608142]
[1644884781780,0.69061015,2932.6,2932.5,5.49895544]
[1644884783083,0.59010977,2932.6,2932.5,8.71846093]
[1644884783381,0.59010977,2932.6,2932.5,5.49895544]
[1644884784789,1.96263885,2932.6,2932.5,5.49895544]
[1644884785323,1.96271705,2932.6,2932.5,5.49895544]
[1644884785925,0.59010977,2932.6,2932.5,5.49895544]
[1644884787524,0.59010977,2932.6,2932.5,4.64644544]
[1644884787925,1.96329802,2932.6,2932.5,4.64644544]
[1644884788971,1.96329802,2932.6,2932.5,5.49897544]
[1644884789176,1.96329802,2932.6,2932.5,4.64644544]
[1644884789372,1.96329802,2932.6,2932.5,1.14644544]
[1644884790974,1.96329802,2932.6,2932.5,1.99896544]
[1644884791175,1.96329802,2932.6,2932.5,1.14644544]
[1644884792926,1.96329802,2932.6,2932.5,1.99896544]
[1644884793534,1.96524967,2932.6,2932.5,1.99896544]
[1644884793724,1.96536618,2932.6,2932.5,1.99896544]
[1644884793928,0.59010977,2932.6,2932.5,1.99896544]
[1644884794126,1.96753509,2932.6,2932.5,1.99896544]
[1644884794326,0.59010977,2932.6,2932.5,1.99896544]
[1644884794529,1.96755948,2932.6,2932.5,1.99896544]
[1644884794825,1.96756313,2932.6,2932.5,1.99896544]
[1644884795226,1.96758537,2932.6,2932.5,1.99896544]
[1644884795427,0.59010977,2932.6,2932.5,1.99896544]
[1644884795925,1.96795908,2932.6,2932.5,1.99896544]
[1644884796125,0.59010977,2932.6,2932.5,1.99896544]
[1644884796372,1.96791675,2932.6,2932.5,1.99896544]
[1644884796672,1.96792551,2932.6,2932.5,1.99896544]
[1644884796872,0.59010977,2932.6,2932.5,1.99896544]
[1644884797073,1.96801459,2932.6,2932.5,1.99896544]
[1644884797273,1.9680183,2932.6,2932.5,1.99896544]
[1644884797475,0.59010977,2932.6,2932.5,1.99896544]
[1644884797679,1.96805126,2932.6,2932.5,1.99896544]
[1644884797875,0.59010977,2932.6,2932.5,1.99896544]
[1644884798075,1.96818144,2932.6,2932.5,1.99896544]
[1644884798274,0.59010977,2932.6,2932.5,1.99896544]
[1644884798475,1.96819282,2932.6,2932.5,5.22904256]
[1644884798675,0.59010977,2932.6,2932.5,1.99896544]
[1644884798874,1.96812319,2932.6,2932.5,1.99896544]
[1644884799075,0.59010977,2932.6,2932.5,1.99896544]
[1644884799278,1.96814669,2932.6,2932.5,1.99896544]
[1644884799475,0.59010977,2932.6,2932.5,1.99896544]
[1644884799676,1.96800569,2932.6,2932.5,1.99896544]
[1644884799877,1.96804317,2932.6,2932.5,1.14644544]
[1644884800124,0.59010977,2932.6,2932.5,1.99893544]
[1644884800332,1.96776956,2932.6,2932.5,1.9989358]
[1644884800522,0.59010977,2932.6,2932.5,1.9989358]
[1644884800725,1.96242188,2932.6,2932.5,1.9989358]
[1644884801723,0.59010977,2932.6,2932.5,1.9989358]
[1644884801923,1.96260231,2932.6,2932.5,1.9989358]
[1644884802125,0.59010977,2932.6,2932.5,1.9989358]
[1644884802423,1.96271682,2932.6,2932.5,1.9989358]
[1644884802624,1.96271072,2932.6,2932.5,1.9989358]
[1644884802829,1.9627251,2932.6,2932.5,1.9989358]
[1644884803024,0.59010977,2932.6,2932.5,1.9989358]
[1644884803425,1.96266062,2932.6,2932.5,1.9989358]
[1644884803629,0.59010977,2932.6,2932.5,1.9989358]
[1644884803875,1.9626293,2932.6,2932.5,1.9989358]
[1644884804174,1.96269701,2932.6,2932.5,1.9989358]
[1644884804472,0.59010977,2932.6,2932.5,1.9989358]
[1644884804873,1.96273792,2932.6,2932.5,1.9989358]
[1644884805073,0.59010977,2932.6,2932.5,1.9989358]
[1644884805274,1.96276473,2932.6,2932.5,1.9989358]
[1644884805478,0.59010977,2932.6,2932.5,1.9989358]
[1644884805673,1.96152032,2932.6,2932.5,1.9989358]
[1644884805874,0.58888282,2932.6,2932.5,1.9989358]
[1644884806074,1.96166985,2932.6,2932.5,1.9989358]
[1644884806276,0.58888282,2932.6,2932.5,0.92482401]
[1644884806478,0.58888282,2932.6,2932.5,0.07233401]
[1644884806676,0.88888282,2932.6,2932.5,0.07233401]
[1644884806875,2.90687148,2932.6,2932.2,0.07234275]
[1644884807076,1.37269875,2932.5,2932.1,0.13888075]
[1644884807275,2.22544875,2932.5,2932.2,0.07234367]
[1644884807521,1.37269875,2932.4,2932.2,0.07234367]
[1644884807722,1.37269875,2932.4,2932.2,0.07082576]
[1644884808626,2.22543875,2932.4,2932.2,0.07082576]
[1644884808821,0.85276,2932.4,2932.2,0.07082576]
[1644884809825,4.12315574,2932.5,2932.2,0.07082576]
[1644884809826,4.18651424,2932.3,2932.2,0.07082576]
[1644884810023,4.18651424,2932.3,2932.1,0.13888075]
[1644884810225,3.68151105,2932.2,2932.1,0.13888075]
[1644884811373,2.55863,2932.3,2932.1,0.13888075]
[1644884812977,1.70572,2932.3,2932.1,0.13888075]
[1644884816021,3.44991582,2932.4,2932.1,0.13888075]
[1644884816221,0.00956886,2932.5,2932.1,0.13888075]
[1644884816823,0.58888282,2932.6,2932.1,0.13888075]
[1644884817022,0.58888282,2932.6,2932.1,0.99165375]
[1644884817023,3.34713015,2932.5,2932.1,0.99165375]
[1644884817222,3.34713015,2932.5,2932.1,0.1436635]
[1644884817622,3.64713015,2932.5,2932.1,0.13888075]
[1644884818022,3.64713015,2932.5,2932.1,0.1436635]
[1644884818023,4.28285108,2932.5,2932.1,0.1436635]
[1644884818424,3.64713015,2932.5,2932.1,0.1436635]
[1644884818630,0.85281,2932.4,2932.1,0.9964343]
[1644884819873,0.85279,2932.3,2932.2,0.00478275]
[1644884820074,0.85281,2932.4,2932.2,0.00478275]
[1644884820374,0.58888282,2932.6,2932.2,0.00478275]
[1644884820574,0.00928191,2932.5,2932.2,0.00478275]
[1644884821574,0.58888282,2932.6,2932.2,0.00478275]
[1644884821775,0.00928197,2932.5,2932.2,0.85745325]
[1644884822833,0.58888282,2932.6,2932.2,0.85745325]
[1644884823030,0.00896721,2932.5,2932.2,0.85745325]
[1644884823730,0.00896721,2932.5,2932.2,0.00478275]
[1644884823731,0.86170721,2932.5,2932.2,0.00478275]
[1644884824133,0.85274,2932.5,2932.2,0.00478275]
[1644884824334,0.86170721,2932.5,2932.2,0.00478275]
[1644884824534,4.15184482,2932.5,2932.2,0.00478275]
[1644884824931,5.00458482,2932.5,2932.2,0.00478275]
[1644884825332,4.14287761,2932.5,2932.2,0.00478275]
[1644884825533,0.3,2932.4,2932.2,0.00478275]
[1644884825933,1.70579,2932.3,2932.2,0.00478275]
[1644884826275,3.49490058,2932.3,2932.2,0.00478275]
[1644884827075,4.71688036,2932.5,2932.2,0.00478275]
[1644884827271,0.3,2932.4,2932.2,0.00478275]
[1644884827672,0.3,2932.5,2932.2,0.00478275]
[1644884827872,1.36508613,2932.4,2932.3,0.07295932]
[1644884828675,1.36508613,2932.4,2932.2,0.00478275]
[1644884829372,3.07060613,2932.4,2932.2,0.00478275]
[1644884829573,1.36508613,2932.3,2932.2,0.00478275]
[1644884829772,1.36508613,2932.3,2932.2,0.07777437]
[1644884830423,1.36508613,2932.3,2932.2,0.00478275]
[1644884830626,1.36508613,2932.4,2932.2,0.07773989]
[1644884830824,0.86164324,2932.5,2932.1,0.13888075]
[1644884830825,2.21783613,2932.3,2932.1,0.13888075]
[1644884831029,0.85275,2932.3,2932.2,0.07793474]
[1644884831225,2.21757595,2932.3,2932.2,0.07793474]
[1644884833029,3.07036595,2932.3,2932.2,0.07793474]
[1644884833429,3.07036595,2932.3,2932.2,0.00489216]
[1644884834474,2.21757595,2932.3,2932.2,0.00489216]
[1644884835677,3.37038595,2932.3,2932.2,0.00489216]
[1644884836174,2.21757595,2932.3,2932.2,0.00489216]
[1644884836375,2.51757595,2932.3,2932.2,0.00489216]
[1644884837835,1.66482595,2932.3,2932.2,0.00489216]
[1644884838741,1.66482595,2932.3,2932.2,0.07788251]
[1644884838938,1.36482595,2932.3,2932.2,0.07788251]
[1644884839344,1.66482595,2932.4,2932.2,0.07788251]
[1644884839538,1.36482595,2932.3,2932.2,0.00489216]
[1644884839738,1.36482595,2932.3,2932.2,0.07788787]
[1644884840941,2.21761595,2932.3,2932.2,0.00489216]
[1644884841380,1.70583,2932.0,2931.8,0.00895532]
[1644884841577,1.36482595,2931.9,2931.8,0.00895532]
[1644884841777,1.66482595,2931.9,2931.8,0.00895532]
[1644884842276,1.66482595,2931.9,2931.0,0.84549614]
[1644884842277,2.51772595,2931.9,2931.0,0.84549614]
[1644884842479,2.51772595,2931.9,2930.8,1.2147]
[1644884842480,2.21784595,2931.8,2931.7,0.00895528]
[1644884842676,1.36482595,2931.8,2931.7,0.00895528]
[1644884842876,2.36482595,2931.8,2931.7,0.00895528]
[1644884843077,1.36482595,2931.8,2931.7,0.00895528]
[1644884843277,2.36482595,2931.8,2931.7,0.00895528]
[1644884843480,4.92394595,2931.8,2930.8,1.8641364]
[1644884843782,4.92394595,2931.8,2930.6,5.90519]
[1644884843783,0.853195,2931.4,2930.9,0.07236549]
[1644884843978,1.36482595,2931.3,2931.0,0.07236549]
[1644884844178,1.36482595,2931.3,2931.1,0.07236549]
[1644884844378,1.36482595,2931.3,2931.2,0.07236549]
[1644884844879,1.36482595,2931.3,2931.1,0.00869505]
[1644884845126,1.36482595,2931.3,2931.2,0.07236549]
[1644884845525,2.21805595,2931.3,2931.2,0.07236549]
[1644884845925,3.92450595,2931.3,2931.2,0.07236549]
[1644884846127,0.85322,2931.2,2931.1,0.00869496]
[1644884846526,0.85322,2931.2,2931.1,0.08106311]
[1644884846925,0.85322,2931.2,2931.1,0.07236815]
[1644884847325,0.85322,2931.2,2931.0,0.00867297]
[1644884847525,0.85322,2931.2,2931.1,0.07236815]
[1644884847726,1.70641,2931.2,2931.1,0.07236815]
[1644884847926,3.0812955,2931.2,2931.1,0.07236815]
[1644884848127,1.70641,2931.2,2931.1,0.07236815]
[1644884848974,0.85314,2931.3,2931.1,0.07236815]
[1644884849177,0.1705,2931.8,2931.1,0.07236815]
[1644884849377,1.37422501,2931.7,2931.1,0.07236815]
[1644884849575,1.37422501,2931.7,2931.2,0.07236815]
[1644884849781,3.08044501,2931.7,2931.3,0.07236815]
[1644884849977,2.22725501,2931.6,2931.4,0.07236815]
[1644884850174,2.22725501,2931.6,2931.1,0.00868866]
[1644884850175,1.37422501,2931.5,2931.1,0.00868866]
[1644884850377,1.37422501,2931.5,2931.2,0.07236478]
[1644884850675,1.37422501,2931.4,2931.2,0.07236478]
[1644884850874,1.37422501,2931.4,2930.7,0.6494364]
[1644884850875,2.22728501,2931.4,2931.3,0.07236478]
[1644884852078,2.22728501,2931.4,2931.2,0.00846645]
[1644884852281,0.85306,2931.4,2931.3,0.07236478]
[1644884852524,2.22808254,2931.4,2931.3,0.07236478]
[1644884852925,3.08119254,2931.4,2931.3,0.07236478]
[1644884853426,2.22808254,2931.4,2931.3,0.07236478]
[1644884853628,2.22808254,2931.4,2931.3,0.07236877]
[1644884854427,1.37502254,2931.4,2931.3,0.07236877]
[1644884854832,1.37507301,2931.6,2931.3,0.07236877]
[1644884855027,1.37506987,2931.5,2931.3,0.07236877]
[1644884855227,1.37506987,2931.4,2931.3,0.07236877]
[1644884855528,0.853,2931.4,2931.3,0.07236877]
[1644884855728,1.37506987,2931.4,2931.3,0.08086648]
[1644884855928,1.37506987,2931.7,2931.3,0.08086648]
[1644884856128,3.08108987,2931.7,2931.4,0.07236877]
[1644884856374,1.37506987,2931.6,2931.4,0.07236877]
[1644884856573,2.22807987,2931.6,2931.4,0.07236877]
[1644884856773,0.13847331,2931.3,2930.8,1.7059549]
[1644884856974,0.13847331,2931.3,2930.9,0.07723613]
[1644884857173,0.13847331,2931.3,2931.0,0.07236644]
[1644884857775,1.3745715,2931.2,2931.0,0.92538244]
[1644884857973,1.3745715,2931.2,2931.1,0.07723613]
[1644884858578,1.3745715,2931.2,2931.1,0.07236644]
[1644884859176,1.3745715,2931.2,2930.7,0.00486969]
[1644884859476,3.0808715,2931.2,2931.0,0.00850027]
[1644884859676,1.3745715,2931.1,2931.0,0.00850027]
[1644884860128,1.3745715,2931.1,2930.5,0.00486969]
[1644884860324,0.85318,2931.0,2930.6,0.07237835]
[1644884860524,1.3745715,2931.1,2930.9,0.00850046]
[1644884860727,1.36993212,2931.0,2930.9,0.00850046]
[1644884861125,1.36993212,2931.1,2930.9,0.00850046]
[1644884861328,1.36993212,2931.1,2930.6,0.00486969]
[1644884861329,1.36993212,2931.0,2930.6,0.00486969]
[1644884861525,2.22308212,2931.0,2930.7,0.07237797]
[1644884861726,1.36993212,2930.9,2930.8,0.00850074]
[1644884861925,1.36993212,2930.9,2930.8,0.08087871]
[1644884862328,0.85315,2931.0,2930.8,0.08087871]
[1644884862529,0.85315,2931.0,2930.9,0.07237797]
[1644884862726,1.36452998,2931.0,2930.7,0.07237797]
[1644884863126,0.85319,2930.9,2930.7,0.07724766]
[1644884863326,0.85319,2930.9,2930.8,0.07237797]
[1644884863986,0.85319,2930.9,2930.6,0.07237797]
[1644884864177,0.85319,2930.9,2930.7,0.07237797]
[1644884864582,0.85319,2930.9,2930.8,0.07237797]
[1644884864779,0.85319,2930.9,2930.7,0.07724766]
[1644884864979,0.85319,2930.9,2930.8,0.07237797]
[1644884865378,1.70631,2931.1,2930.8,0.07237797]
[1644884865582,1.36408999,2931.0,2930.8,0.07237797]
[1644884865780,1.36408999,2931.0,2930.8,0.07724766]
[1644884865978,1.36408999,2931.0,2930.9,0.07237797]
[1644884867381,2.21724999,2931.0,2930.9,0.07237797]
[1644884868035,1.36408999,2931.0,2930.9,0.07237797]
[1644884868732,1.36408999,2931.0,2930.6,0.92553967]
[1644884868932,2.21725999,2931.0,2930.8,0.00957307]
[1644884869132,1.70631,2931.1,2930.9,0.07237797]
[1644884869334,1.36400882,2931.0,2930.9,0.07237797]
[1644884870136,1.70631,2931.1,2930.8,0.08195104]
[1644884870341,1.70631,2931.1,2930.9,0.07237797]
[1644884870936,1.36405621,2931.0,2930.9,0.07237797]
[1644884871138,2.51721621,2931.0,2930.8,0.00486969]
[1644884871380,2.51721621,2931.0,2930.4,1.00572552]
[1644884871381,1.15316,2931.0,2930.9,0.00957297]
[1644884871574,2.51707099,2931.0,2930.9,0.00957297]
[1644884872176,3.37033099,2931.0,2930.5,0.00486969]
[1644884872378,3.07043099,2930.9,2930.6,0.07238038]
[1644884872577,1.70652,2930.9,2930.6,0.07238038]
[1644884872778,0.3,2931.0,2930.6,0.07238038]
[1644884872981,1.26837331,2931.3,2930.6,0.07238038]
[1644884873177,1.26837331,2931.3,2930.6,0.07725007]
[1644884873178,0.99148331,2931.3,2930.6,0.07725007]
[1644884873377,0.99148331,2931.3,2930.7,0.07238038]
[1644884873580,0.13847331,2931.3,2930.7,3.76102169]
[1644884873777,0.13847331,2931.3,2930.8,0.08681613]
[1644884873976,0.13847331,2931.3,2930.9,0.07238038]
[1644884874580,0.13847331,2931.3,2931.0,0.85292]
[1644884874778,0.13847331,2931.3,2931.1,0.07725007]
[1644884875031,0.13847331,2931.3,2931.2,0.07238038]
[1644884875639,1.50318024,2931.3,2931.1,0.07238038]
[1644884875831,1.50318024,2931.3,2931.0,0.00956575]
[1644884875832,0.13847331,2931.3,2931.2,0.07238038]
[1644884876233,0.13847331,2931.3,2931.1,0.07238038]
[1644884876835,0.13847331,2931.3,2931.1,0.92531228]
[1644884877033,0.13847331,2931.3,2931.2,0.07238038]
[1644884877235,0.13847331,2931.3,2931.2,0.07725007]
[1644884877835,0.13847331,2931.3,2931.2,0.93016007]
[1644884879281,0.25,2931.7,2931.3,2.0]
[1644884879482,1.3656251,2931.6,2931.4,4.25319715]
[1644884879686,1.3656251,2931.6,2931.3,0.85773269]
[1644884879687,1.1724,2932.2,2931.5,0.07725007]
[1644884879883,1.36316679,2932.1,2931.6,0.07238038]
[1644884880081,1.36316679,2932.1,2931.4,3.30980725]
[1644884880082,1.36316679,2932.1,2931.7,0.07238038]
[1644884880280,1.36316679,2932.1,2931.9,1.01124492]
[1644884880481,1.36316679,2932.0,2931.7,0.85273]
[1644884880682,1.36316679,2931.9,2931.8,0.07362642]
[1644884881381,0.85288,2932.1,2931.4,0.07362642]
[1644884881581,0.85288,2932.1,2931.4,1.77922722]
[1644884881582,0.85289,2931.9,2931.4,1.77922722]
[1644884881783,1.36316679,2931.8,2931.5,0.07362642]
[1644884881981,1.36316679,2931.8,2931.5,0.92649282]
[1644884882181,1.36316679,2931.8,2931.6,0.07362642]
[1644884883231,2.21608679,2931.8,2931.6,0.07362642]
[1644884883632,0.85292,2931.8,2931.4,0.07362642]
[1644884883833,1.36316679,2931.7,2931.2,0.07362642]
[1644884884033,1.36316679,2931.7,2931.3,0.07382364]
[1644884884231,1.36316679,2931.6,2931.4,0.07382364]
[1644884884429,1.49816991,2931.9,2931.2,0.00486969]
[1644884884430,1.36316679,2931.5,2931.2,0.00486969]
[1644884884629,4.91228991,2932.1,2931.3,0.07385555]
[1644884884630,1.36316679,2931.4,2931.3,0.07385555]
[1644884884829,1.36316679,2931.4,2931.3,0.07872524]
[1644884885049,1.36316679,2932.0,2931.3,0.07872524]
[1644884885231,0.85292,2931.8,2931.4,0.0738385]
[1644884885431,1.36316679,2931.7,2931.4,0.0738385]
[1644884886029,2.35112991,2932.0,2931.4,0.0738385]
[1644884886030,1.36316679,2931.6,2931.4,0.0738385]
[1644884886281,2.35112991,2932.0,2931.4,0.0738385]
[1644884886282,1.36316679,2931.5,2931.4,0.0738385]
[1644884886678,0.85294,2931.7,2931.4,0.0738385]
[1644884886679,1.36316679,2931.6,2931.4,0.0738385]
[1644884886880,1.36316679,2931.5,2931.4,0.0738385]
[1644884887282,1.36316679,2931.6,2931.4,0.0738385]
[1644884887479,1.36316679,2931.5,2931.4,0.0738385]
[1644884887880,1.36316679,2931.8,2931.4,0.0738385]
[1644884888080,1.36316679,2931.7,2931.4,0.0738385]
[1644884888281,1.36316679,2931.6,2931.4,0.0738385]
[1644884888482,3.35790113,2931.9,2931.4,0.0738385]
[1644884888483,1.36316679,2931.5,2931.4,0.0738385]
[1644884888887,2.21615679,2931.7,2931.4,0.0738385]
[1644884889081,1.36316679,2931.6,2931.4,0.0738385]
[1644884889484,4.66749168,2931.6,2931.4,0.0738385]
[1644884889682,1.36316679,2931.5,2931.4,0.0738385]
[1644884889882,4.58607434,2931.5,2931.4,0.0738385]
[1644884890131,4.58607434,2931.5,2931.1,0.0738385]
[1644884890332,2.21622679,2931.4,2931.2,0.0738385]
[1644884890534,1.36316679,2931.3,2931.0,0.00610896]
[1644884890733,1.36316679,2931.2,2931.1,0.07440942]
[1644884891133,3.06929679,2931.5,2931.1,0.07440942]
[1644884891333,1.36316679,2931.4,2931.1,0.07440942]
[1644884891538,0.85307,2931.3,2931.1,0.07927911]
[1644884891737,1.36316679,2931.2,2931.0,0.00957861]
[1644884891935,1.36316679,2931.2,2931.1,0.07441502]
[1644884892837,0.853,2931.4,2931.0,0.01444822]
[1644884893135,1.2461,2931.7,2931.1,0.07443788]
[1644884893338,3.90196,2932.0,2931.1,0.07443788]
[1644884893339,1.36438768,2931.6,2931.1,0.07443788]
[1644884893536,1.36438768,2931.5,2931.2,0.07443788]
[1644884893777,3.5,2932.0,2931.2,0.07930757]
[1644884893978,1.3643072,2931.9,2931.3,0.07443788]
[1644884894378,1.3643072,2931.8,2931.3,0.07443788]
[1644884894580,1.3643072,2931.7,2931.3,0.07443788]
[1644884894778,1.3643072,2931.6,2931.3,0.07443788]
[1644884894978,1.3643072,2931.5,2931.3,0.07443788]
[1644884895179,0.85288,2932.1,2931.4,0.8528407]
[1644884895378,4.80128037,2932.0,2931.5,0.07443788]
[1644884895678,1.36438273,2931.9,2931.6,0.07443788]
[1644884895879,1.36438273,2931.9,2931.7,0.07443788]
[1644884896080,1.36438273,2931.9,2931.8,0.07443788]
[1644884896581,2.21731273,2931.9,2931.2,0.07443788]
[1644884896783,5.56147517,2931.8,2931.2,0.07443788]
[1644884896981,1.36438273,2931.7,2931.2,0.07443788]
[1644884898234,1.36438273,2931.7,2931.2,0.92740028]
[1644884898533,3.53540462,2932.1,2931.3,0.07930757]
[1644884898534,1.36438273,2931.6,2931.3,0.07930757]
[1644884898735,1.35866854,2931.5,2931.4,0.07443788]
[1644884898935,1.35866854,2931.5,2931.1,0.00486969]
[1644884898936,1.35867386,2931.5,2931.1,0.07930757]
[1644884899133,0.8529,2931.8,2931.5,0.15030561]
[1644884899339,1.35848991,2931.7,2931.6,0.07443788]
[1644884900534,1.35848991,2931.7,2931.5,0.15030561]
[1644884900734,1.35848991,2931.7,2931.6,0.07974693]
[1644884902182,2.21145991,2931.7,2931.5,0.15030561]
[1644884902383,1.35848991,2931.6,2931.5,0.15030561]
[1644884902582,1.35848991,2931.6,2931.5,0.22999969]
[1644884903984,4.75814721,2931.6,2931.5,0.22999969]
[1644884904192,4.75814721,2931.6,2931.5,0.15030561]
[1644884904193,5.70343712,2931.6,2931.5,0.15030561]
[1644884904386,6.05814721,2931.6,2931.5,0.15030561]
[1644884905027,7.76432721,2931.6,2931.5,0.15030561]
[1644884909080,7.76432721,2931.6,2931.0,0.00957891]
[1644884909081,0.85322,2931.4,2931.0,0.00957891]
[1644884909278,8.29518264,2931.3,2931.0,0.00957891]
[1644884909478,1.35848991,2931.2,2930.3,0.00486969]
[1644884909676,3.54497943,2931.1,2930.4,0.07988371]
[1644884909881,3.54497943,2931.1,2930.5,0.03832077]
[1644884909882,1.35848991,2931.0,2930.5,0.03832077]
[1644884910076,1.35848991,2931.0,2930.6,0.07988371]
[1644884910477,0.85324,2930.9,2930.6,0.07988371]
[1644884910677,5.25146943,2931.1,2930.6,0.0847534]
[1644884910678,1.35848991,2930.8,2930.6,0.0847534]
[1644884910879,5.25146943,2931.1,2930.7,0.07988371]
[1644884911080,1.35803267,2931.0,2930.7,0.08946297]
[1644884911277,1.35803267,2931.0,2930.8,0.07988371]
[1644884912079,1.35803267,2931.0,2930.9,0.07988371]
[1644884912537,5.47356644,2931.0,2930.9,0.07988371]
[1644884912735,2.21118267,2931.0,2930.9,0.07988371]
[1644884914536,2.21118267,2931.0,2930.8,0.00957895]
[1644884914740,0.85315,2931.0,2930.9,0.07988371]
[1644884914937,2.21135221,2931.0,2930.9,0.07988371]
[1644884915937,3.06453221,2931.0,2930.9,0.07988371]
[1644884916580,2.21138221,2931.0,2930.9,0.07988371]
[1644884917380,5.48995027,2931.0,2930.9,0.07988371]
[1644884917582,5.48995027,2931.0,2930.8,0.00957895]
[1644884917785,4.68964533,2930.9,2930.8,0.00957895]
[1644884917982,4.68964533,2930.9,2930.5,0.00486969]
[1644884918283,1.35820221,2930.8,2930.6,0.07984877]
[1644884918481,1.35820221,2930.8,2930.6,0.08471846]
[1644884918682,1.35820221,2930.8,2930.6,0.00486969]
[1644884919084,1.35820221,2930.8,2930.5,0.84889033]
[1644884919283,1.35820221,2930.8,2930.6,0.08359358]
[1644884919483,1.35820221,2930.8,2930.6,0.09317305]
[1644884919682,3.06464221,2930.8,2930.6,0.00957947]
[1644884919884,1.35820221,2930.7,2930.6,0.00957947]